bitfinex/quotes_BTCUSD_20251012
["timestamp","ask_amount","ask_price","bid_price","bid_amount"]
[1760278047553,0.18415647,111680.0,111670.0,0.1792495]
[1760278047759,0.00507338,111680.0,111670.0,0.2257095]
[1760278047961,0.00507338,111680.0,111670.0,0.2584095]
[1760278048162,0.00507338,111680.0,111670.0,0.3272395]
[1760278048163,0.00058338,111680.0,111670.0,0.3272395]
[1760278048593,0.00058338,111680.0,111670.0,0.38078389]
[1760278048738,0.00058338,111680.0,111670.0,0.3272395]
[1760278050047,0.00058338,111680.0,111670.0,0.3282395]
[1760278050473,0.00058338,111680.0,111670.0,0.3272395]
[1760278050869,0.00058338,111680.0,111670.0,0.3282395]
[1760278052071,0.00507338,111680.0,111670.0,0.2604095]
[1760278052286,0.00058338,111680.0,111670.0,0.3258895]
[1760278053097,0.1902328,111700.0,111680.0,0.17907051]
[1760278053495,0.00449,111690.0,111680.0,0.17907051]
[1760278053633,0.00449,111700.0,111690.0,0.22624706]
[1760278054631,0.18354102,111700.0,111690.0,0.26208706]
[1760278055185,0.00449,111700.0,111690.0,0.26208706]
[1760278056570,0.18354102,111700.0,111690.0,0.26208706]
[1760278056783,0.18354102,111700.0,111690.0,0.21490706]
[1760278056980,0.20286102,111700.0,111690.0,0.25392706]
[1760278057187,0.02381,111700.0,111690.0,0.17090706]
[1760278057387,0.02381,111700.0,111690.0,0.21808706]
[1760278057823,0.01932,111700.0,111690.0,0.31940706]
[1760278057983,0.01932,111700.0,111690.0,0.37283882]
[1760278058185,0.06399,111700.0,111690.0,0.37283882]
[1760278058367,0.06399,111700.0,111690.0,0.30735882]
[1760278058569,0.06399,111700.0,111690.0,0.25392706]
[1760278058828,0.01932,111700.0,111690.0,0.25392706]
[1760278059004,0.02048647,111700.0,111690.0,0.31940706]
[1760278059615,0.06515647,111700.0,111690.0,0.31940706]
[1760278061028,0.06515647,111700.0,111690.0,0.25392706]
[1760278062729,0.06515647,111700.0,111690.0,0.17090706]
[1760278063152,0.06515647,111700.0,111690.0,0.21565706]
[1760278063553,0.06515647,111700.0,111690.0,0.17090706]
[1760278064016,0.06515647,111700.0,111690.0,0.15590706]
[1760278064796,0.10352647,111700.0,111690.0,0.15590706]
[1760278066725,0.06515647,111700.0,111690.0,0.15590706]
[1760278068101,0.06515647,111700.0,111690.0,0.20065706]
[1760278068953,0.06515647,111700.0,111690.0,0.23382706]
[1760278070942,0.06515647,111700.0,111690.0,0.15590706]
[1760278071117,0.06515647,111700.0,111690.0,0.17381376]
[1760278071536,0.06515647,111700.0,111690.0,0.15590706]
[1760278072810,0.10352647,111700.0,111690.0,0.15590706]
[1760278073420,0.17906706,111690.0,111680.0,0.17908309]
[1760278073577,0.21744707,111700.0,111690.0,0.17906706]
[1760278073771,0.20674373,111700.0,111690.0,0.17906706]
[1760278074066,0.2538902,111700.0,111690.0,0.17906706]
[1760278074269,0.2922602,111700.0,111690.0,0.17906706]
[1760278074395,0.2922602,111700.0,111680.0,0.17908309]
[1760278074600,0.03895329,111690.0,111680.0,0.17908309]
[1760278075205,0.08493329,111690.0,111680.0,0.17908309]
[1760278076273,0.06138831,111700.0,111680.0,0.22383309]
[1760278076504,0.06976453,111700.0,111690.0,0.17906706]
[1760278076701,0.00837622,111700.0,111690.0,0.17906706]
[1760278076908,0.57219178,111710.0,111690.0,0.17906706]
[1760278077119,0.17905102,111700.0,111690.0,0.17906706]
[1760278078333,0.18742913,111700.0,111690.0,0.17906706]
[1760278079110,0.00837811,111700.0,111690.0,0.22381706]
[1760278079314,0.57220314,111710.0,111690.0,0.22381706]
[1760278079733,0.36745416,111710.0,111700.0,0.17905102]
[1760278079930,0.34837811,111710.0,111700.0,0.22557102]
[1760278080582,0.00937811,111710.0,111700.0,0.26076102]
[1760278080720,0.002,111710.0,111700.0,0.26076102]
[1760278080915,0.23724423,111720.0,111700.0,0.17905102]
[1760278080916,0.22320433,111720.0,111700.0,0.17905102]
[1760278081126,0.179035,111710.0,111700.0,0.17905102]
[1760278081328,0.00837811,111710.0,111700.0,0.22557102]
[1760278081686,0.179035,111710.0,111700.0,0.22557102]
[1760278081918,0.18741311,111710.0,111700.0,0.17905102]
[1760278082125,0.00058321,111700.0,111690.0,0.27923706]
[1760278082304,0.00058321,111700.0,111690.0,0.32575706]
[1760278084545,0.17963423,111700.0,111690.0,0.26077706]
[1760278085156,0.17963423,111700.0,111690.0,0.21425706]
[1760278085557,0.17963423,111700.0,111690.0,0.26077706]
[1760278086324,0.17963423,111700.0,111690.0,0.52947706]
[1760278090439,0.00058321,111700.0,111690.0,0.59445706]
[1760278090862,0.00058321,111700.0,111690.0,0.52947706]
[1760278091282,0.00058321,111700.0,111690.0,0.59445706]
[1760278091502,0.00058321,111700.0,111690.0,0.52947706]
[1760278092257,0.17963423,111700.0,111690.0,0.52947706]
[1760278092469,0.00058321,111700.0,111690.0,0.52947706]
[1760278093197,0.17963423,111700.0,111690.0,0.35041]
[1760278093407,0.17963423,111700.0,111690.0,0.17906706]
[1760278095635,0.17906706,111690.0,111680.0,0.03413012]
[1760278095839,0.17906706,111690.0,111680.0,0.00096012]
[1760278096769,0.18743712,111690.0,111680.0,0.00096012]
[1760278096970,0.55157893,111690.0,111680.0,0.00096012]
[1760278097196,0.61926632,111690.0,111680.0,0.00096012]
[1760278097357,0.63978841,111690.0,111680.0,0.00096012]
[1760278097558,0.65579632,111690.0,111680.0,0.00096012]
[1760278097801,0.71094821,111690.0,111680.0,0.00096012]
[1760278098162,5.8109482,111690.0,111680.0,0.00096012]
[1760278098414,5.71094821,111690.0,111680.0,1e-08]
[1760278098613,5.8109482,111690.0,111680.0,1e-08]
[1760278098820,5.8119482,111690.0,111680.0,1e-08]
[1760278099024,5.78232681,111690.0,111680.0,1e-08]
[1760278099234,5.81238521,111690.0,111680.0,1e-08]
[1760278099438,5.76550518,111690.0,111680.0,1e-08]
[1760278099649,0.71235329,111690.0,111680.0,1e-08]
[1760278099859,0.71135329,111690.0,111680.0,1e-08]
[1760278100074,0.71335329,111690.0,111680.0,1e-08]
[1760278100485,0.7373693,111690.0,111680.0,1e-08]
[1760278100887,0.63736931,111690.0,111680.0,1e-08]
[1760278101096,0.1791254,111660.0,111640.0,0.19844406]
[1760278101302,0.17913121,111650.0,111640.0,0.1542967]
[1760278101506,0.17913121,111650.0,111630.0,0.1791633]
[1760278101764,0.17913121,111650.0,111630.0,0.17931384]
[1760278101967,0.17913121,111650.0,111640.0,0.17914725]
[1760278102194,0.21502284,111660.0,111640.0,0.17914725]
[1760278102400,0.21602284,111660.0,111640.0,0.17914725]
[1760278102813,0.17913121,111650.0,111640.0,0.17914725]
[1760278103226,0.17913121,111650.0,111640.0,0.22566725]
[1760278103429,0.17913121,111650.0,111640.0,0.17914725]
[1760278104451,0.21502284,111660.0,111640.0,0.22566725]
[1760278104662,0.34,111660.0,111650.0,0.17913121]
[1760278104877,0.51911517,111660.0,111650.0,0.17913121]
[1760278105094,0.51911517,111660.0,111640.0,0.27931725]
[1760278105529,0.51911517,111660.0,111650.0,0.17913121]
[1760278105702,0.52011517,111660.0,111650.0,0.17913121]
[1760278105911,0.18011517,111660.0,111650.0,0.17913121]
[1760278106528,0.17911517,111660.0,111650.0,0.17913121]
[1760278106731,0.17911517,111660.0,111650.0,0.18088175]
[1760278107303,0.17911517,111660.0,111650.0,0.22740175]
[1760278107591,0.17911517,111660.0,111650.0,0.26259175]
[1760278107794,0.17911517,111660.0,111650.0,0.32757175]
[1760278108071,0.18011517,111660.0,111650.0,0.18088175]
[1760278109012,0.18011517,111660.0,111650.0,0.00175054]
[1760278109416,0.18011517,111660.0,111650.0,0.18088175]
[1760278110019,0.18011517,111660.0,111650.0,0.00175054]
[1760278110220,0.20974182,111670.0,111650.0,0.00175054]
[1760278110476,0.17911517,111660.0,111640.0,0.21433725]
[1760278110679,0.17911517,111660.0,111650.0,0.17913121]
[1760278111035,0.17911517,111660.0,111640.0,0.21433725]
[1760278111282,0.17911517,111660.0,111640.0,0.48303725]
[1760278111283,0.17913121,111650.0,111640.0,0.48303725]
[1760278111420,0.17911517,111660.0,111640.0,0.48303725]
[1760278111627,0.18954285,111670.0,111640.0,0.48303725]
[1760278111997,0.17913121,111650.0,111640.0,0.21433725]
[1760278112205,0.17911517,111660.0,111640.0,0.21433725]
[1760278112396,0.18011517,111660.0,111640.0,0.21433725]
[1760278112810,0.17911517,111660.0,111640.0,0.21433725]
[1760278112989,0.17911517,111660.0,111640.0,0.17914725]
[1760278113199,0.17911517,111660.0,111650.0,0.17913121]
[1760278113420,0.18954285,111670.0,111650.0,0.17913121]
[1760278113628,0.17911517,111660.0,111650.0,0.17913121]
[1760278114639,0.51911517,111660.0,111650.0,0.17913121]
[1760278115122,0.52011517,111660.0,111650.0,0.17913121]
[1760278116066,0.52011517,111660.0,111640.0,0.21300725]
[1760278116208,0.52011517,111660.0,111640.0,0.17914725]
[1760278116409,0.52011517,111660.0,111650.0,0.18088175]
[1760278117318,0.51911517,111660.0,111650.0,0.18088175]
[1760278117521,0.52011517,111660.0,111650.0,0.18088175]
[1760278118110,0.51911517,111660.0,111650.0,0.18088175]
[1760278118537,0.52011517,111660.0,111650.0,0.18088175]
[1760278118740,0.001,111660.0,111650.0,0.32191175]
[1760278120466,0.17908309,111680.0,111670.0,0.17909913]
[1760278120870,0.17908309,111680.0,111670.0,0.17968254]
[1760278121082,0.17908309,111680.0,111670.0,0.00058341]
[1760278121283,0.17908309,111680.0,111670.0,0.17968254]
[1760278121910,0.4475712,111690.0,111670.0,0.21556086]
[1760278122107,0.17908309,111680.0,111670.0,0.25883086]
[1760278122311,0.2041211,111680.0,111670.0,0.21556086]
[1760278122518,0.2041211,111680.0,111670.0,0.17968254]
[1760278122716,0.02503801,111680.0,111670.0,0.17968254]
[1760278122925,0.00834312,111680.0,111670.0,0.17968254]
[1760278123122,0.47275958,111690.0,111670.0,0.17968254]
[1760278123324,0.47275958,111690.0,111670.0,0.13668254]
[1760278123531,0.47375958,111690.0,111670.0,0.1611431]
[1760278123986,0.17908309,111680.0,111670.0,0.13668254]
[1760278124148,0.20414122,111680.0,111670.0,0.13668254]
[1760278124352,0.02505813,111680.0,111670.0,0.18105254]
[1760278124548,0.20414122,111680.0,111660.0,0.17910065]
[1760278125812,0.17909913,111670.0,111660.0,0.17911517]
[1760278126395,0.17909913,111670.0,111660.0,0.18065886]
[1760278126773,0.17909913,111670.0,111660.0,0.00154369]
[1760278126978,0.20419516,111670.0,111660.0,0.00154369]
[1760278127555,0.57381655,111670.0,111660.0,0.00154369]
[1760278127711,0.61697234,111670.0,111660.0,0.00154369]
[1760278127912,0.63399613,111670.0,111660.0,0.00154369]
[1760278128161,0.65795734,111670.0,111660.0,0.00154369]
[1760278128371,0.62833595,111670.0,111660.0,0.00154369]
[1760278128955,0.62933595,111670.0,111660.0,0.00154369]
[1760278129879,0.63033595,111670.0,111660.0,0.00154369]
[1760278132850,0.63033837,111670.0,111660.0,0.00154369]
[1760278133242,0.63843556,111670.0,111660.0,0.00154369]
[1760278134630,0.66253131,111670.0,111660.0,0.00154369]
[1760278135053,0.63843556,111670.0,111660.0,0.00154369]
[1760278135895,0.11137475,111670.0,111660.0,0.00154369]
[1760278136106,0.29047388,111670.0,111660.0,0.00154369]
[1760278136402,0.31454285,111670.0,111660.0,0.00154369]
[1760278136630,0.35998587,111670.0,111660.0,0.00154369]
[1760278138002,0.71403305,111670.0,111660.0,0.00154369]
[1760278138400,0.69825401,111670.0,111660.0,0.00154369]
[1760278138883,0.66863262,111670.0,111660.0,0.00154369]
[1760278140284,0.43549465,111670.0,111660.0,0.00154369]
[1760278140499,0.17914725,111640.0,111630.0,0.05016731]
[1760278140718,0.1791633,111630.0,111620.0,0.04304]
[1760278140931,0.1791633,111630.0,111620.0,0.22221935]
[1760278141774,0.1791633,111630.0,111620.0,0.22272136]
[1760278142813,0.1791633,111630.0,111620.0,0.22372136]
[1760278143052,0.17914725,111640.0,111620.0,0.22372136]
[1760278143298,0.1791633,111630.0,111620.0,0.22372136]
[1760278143499,0.1791633,111630.0,111620.0,0.22472136]
[1760278143635,0.17914725,111640.0,111620.0,0.22372136]
[1760278143863,0.21504976,111650.0,111630.0,0.1791633]
[1760278144049,0.17914725,111640.0,111630.0,0.1791633]
[1760278144236,0.18014725,111640.0,111630.0,0.1791633]
[1760278144982,0.17914725,111640.0,111630.0,0.1791633]
[1760278145995,0.17914725,111640.0,111630.0,0.18091431]
[1760278146209,0.20314917,111650.0,111630.0,0.22453431]
[1760278146369,0.20314917,111650.0,111630.0,0.2227833]
[1760278146565,0.01404689,111650.0,111640.0,0.17914725]
[1760278146819,0.17911517,111660.0,111650.0,0.17913121]
[1760278147171,0.56226787,111670.0,111650.0,0.17913121]
[1760278147375,0.03421379,111670.0,111660.0,0.17911517]
[1760278147588,0.0009603,111670.0,111660.0,0.22273517]
[1760278147796,0.0009603,111670.0,111660.0,0.27318281]
[1760278148001,0.0009603,111670.0,111660.0,0.22273517]
[1760278148208,0.18005943,111670.0,111660.0,0.17911517]
[1760278148410,0.18005943,111670.0,111660.0,0.22273517]
[1760278148615,0.18005943,111670.0,111660.0,0.17911517]
[1760278149440,0.18009913,111670.0,111660.0,0.17911517]
[1760278150055,0.17909913,111670.0,111660.0,0.22273517]
[1760278150261,0.17909913,111670.0,111660.0,0.17911517]
[1760278151505,0.17911517,111660.0,111640.0,0.10261]
[1760278151714,0.17909913,111670.0,111650.0,0.21407121]
[1760278151907,0.17911517,111660.0,111650.0,0.17913121]
[1760278152540,0.18805408,111670.0,111650.0,0.17913121]
[1760278152745,0.17911517,111660.0,111650.0,0.17913121]
[1760278153323,0.16545807,111680.0,111660.0,0.17911517]
[1760278153511,0.17909913,111670.0,111650.0,0.22302777]
[1760278153733,0.17911517,111660.0,111650.0,0.26664777]
[1760278153937,0.17911517,111660.0,111640.0,0.2906856]
[1760278154067,0.17909913,111670.0,111650.0,0.17913121]
[1760278154437,0.17909913,111670.0,111650.0,0.22275121]
[1760278154657,0.17911517,111660.0,111650.0,0.17913121]
[1760278155292,0.17911517,111660.0,111650.0,0.18013121]
[1760278157034,0.17911517,111660.0,111650.0,0.18071477]
[1760278157670,0.17911517,111660.0,111650.0,0.00158356]
[1760278158098,0.1958051,111660.0,111650.0,0.00058356]
[1760278158311,0.17911517,111660.0,111650.0,0.00058356]
[1760278159207,0.18011517,111660.0,111650.0,0.00058356]
[1760278159419,0.56915755,111660.0,111650.0,0.00058356]
[1760278159629,0.58736515,111660.0,111650.0,0.00058356]
[1760278160048,0.58836515,111660.0,111650.0,0.00058356]
[1760278161206,0.65061804,111660.0,111650.0,0.00058356]
[1760278161447,0.65160852,111660.0,111650.0,0.00058356]
[1760278161598,0.68691499,111660.0,111650.0,0.00058356]
[1760278161799,0.71386382,111660.0,111650.0,0.00058356]
[1760278162210,0.68424243,111660.0,111650.0,0.00058356]
[1760278162860,0.7082648,111660.0,111650.0,0.00058356]
[1760278163429,0.68326481,111660.0,111650.0,0.00058356]
[1760278163646,0.59406309,111660.0,111650.0,0.00058356]
[1760278163857,0.55701151,111660.0,111650.0,0.00058356]
[1760278164510,0.54032277,111660.0,111650.0,0.00058356]
[1760278164963,0.55500409,111660.0,111650.0,0.00058356]
[1760278165382,0.55600409,111660.0,111650.0,0.00058356]
[1760278167347,0.58002646,111660.0,111650.0,0.00058356]
[1760278167570,0.61852299,111660.0,111650.0,0.00058356]
[1760278167781,0.1791633,111630.0,111610.0,0.28575842]
[1760278168001,0.1791633,111630.0,111610.0,0.32988043]
[1760278168207,0.1791633,111630.0,111620.0,0.00271177]
[1760278168862,0.1791633,111630.0,111620.0,0.18189112]
[1760278169919,0.1791633,111630.0,111620.0,0.18289112]
[1760278170572,0.1791633,111630.0,111620.0,0.00371177]
[1760278171164,0.1791633,111630.0,111620.0,0.00271177]
[1760278171574,0.1791633,111630.0,111620.0,0.00371177]
[1760278171774,0.5659901,111630.0,111620.0,0.00371177]
[1760278171949,0.5851977,111630.0,111620.0,0.00271177]
[1760278172353,0.5861977,111630.0,111620.0,0.00271177]
[1760278172554,0.5560458,111630.0,111620.0,0.00271177]
[1760278172939,0.56846347,111630.0,111620.0,0.00271177]
[1760278173121,0.59861537,111630.0,111620.0,0.00271177]
[1760278173326,5.69275869,111630.0,111620.0,0.00271177]
[1760278174213,5.72238008,111630.0,111620.0,0.00271177]
[1760278174355,0.6606577,111630.0,111620.0,0.00271177]
[1760278174785,0.17919541,111610.0,111600.0,0.02465378]
[1760278174951,0.17969639,111610.0,111600.0,0.02465378]
[1760278175154,0.17921146,111600.0,111590.0,0.17922655]
[1760278175363,0.17921146,111600.0,111580.0,0.22394397]
[1760278175569,0.17922752,111590.0,111580.0,0.1796418]
[1760278175770,0.17922752,111590.0,111580.0,0.00273614]
[1760278176223,0.17922752,111590.0,111580.0,0.18197973]
[1760278177620,0.17922752,111590.0,111580.0,0.18297973]
[1760278178259,0.17921146,111600.0,111580.0,0.22553973]
[1760278178560,0.17921146,111600.0,111580.0,0.25954359]
[1760278178762,0.17922752,111590.0,111580.0,0.25954359]
[1760278179344,0.17921146,111600.0,111580.0,0.25854359]
[1760278180361,0.17921146,111600.0,111590.0,0.17922752]
[1760278180592,0.18021146,111600.0,111590.0,0.17922752]
[1760278181220,0.17921146,111600.0,111590.0,0.17922752]
[1760278182430,0.17921146,111600.0,111590.0,0.13522752]
[1760278183778,0.01455411,111610.0,111600.0,0.17921146]
[1760278183944,0.01455411,111610.0,111600.0,0.22467146]
[1760278183945,0.17969639,111610.0,111600.0,0.22467146]
[1760278184293,0.17969639,111610.0,111600.0,0.00116786]
[1760278185239,0.18069639,111610.0,111600.0,0.00116786]
[1760278185441,0.19732218,111610.0,111600.0,0.00116786]
[1760278189274,0.22134455,111610.0,111600.0,0.00116786]
[1760278189503,0.17922752,111590.0,111580.0,0.1837734]
[1760278189905,0.17922752,111590.0,111580.0,0.2292334]
[1760278190108,0.17922598,111600.0,111580.0,0.3298334]
[1760278190306,0.17922598,111600.0,111590.0,0.17922752]
[1760278190593,0.17922598,111600.0,111590.0,0.07793]
[1760278190712,0.17922598,111600.0,111590.0,0.17922752]
[1760278190934,0.17969639,111610.0,111590.0,0.32528752]
[1760278191128,0.17921146,111600.0,111590.0,0.32528752]
[1760278191456,0.19634886,111610.0,111590.0,0.32528752]
[1760278191457,0.17969639,111610.0,111590.0,0.32528752]
[1760278191683,0.19635085,111610.0,111590.0,0.32528752]
[1760278192232,0.19635085,111610.0,111590.0,0.25715752]
[1760278192449,0.17921146,111600.0,111590.0,0.25715752]
[1760278193760,0.12732667,111610.0,111590.0,0.25715752]
[1760278193969,0.17921146,111600.0,111590.0,0.25715752]
[1760278194193,0.17921146,111600.0,111590.0,0.2576585]
[1760278194395,0.17919541,111610.0,111590.0,0.2576585]
[1760278194812,0.17919541,111610.0,111590.0,0.24794768]
[1760278194962,0.18115639,111610.0,111590.0,0.24794768]
[1760278195409,0.17921146,111600.0,111590.0,0.24794768]
[1760278196378,0.18115639,111610.0,111590.0,0.24794768]
[1760278196379,0.18015639,111610.0,111590.0,0.24794768]
[1760278196571,0.17921146,111600.0,111590.0,0.24794768]
[1760278197186,0.17921146,111600.0,111590.0,0.00050098]
[1760278198058,0.17921146,111600.0,111590.0,0.1797285]
[1760278198547,0.17921146,111600.0,111590.0,0.00050098]
[1760278198802,0.17921146,111600.0,111590.0,0.1797285]
[1760278199343,0.22338636,111610.0,111590.0,0.2576585]
[1760278199739,0.0192076,111610.0,111590.0,0.2576585]
[1760278199964,0.19840301,111610.0,111590.0,0.2576585]
[1760278200361,0.17921146,111600.0,111590.0,0.21278253]
[1760278200565,0.17921146,111600.0,111590.0,0.18031253]
[1760278201431,0.19841906,111600.0,111590.0,0.00108501]
[1760278201853,0.21055847,111600.0,111590.0,0.00108501]
[1760278202318,0.0192076,111600.0,111590.0,0.18031253]
[1760278202536,0.19841906,111600.0,111590.0,0.18031253]
[1760278203562,0.0192076,111600.0,111590.0,0.18031253]
[1760278203815,0.0192076,111600.0,111590.0,0.26063253]
[1760278205844,0.03593359,111600.0,111590.0,0.26063253]
[1760278206293,0.21514505,111600.0,111590.0,0.26063253]
[1760278206525,0.21514505,111600.0,111590.0,0.08140501]
[1760278206718,0.21514505,111600.0,111590.0,0.26063253]
[1760278207129,0.03593359,111600.0,111590.0,0.26063253]
[1760278207679,0.03593359,111600.0,111590.0,0.32752253]
[1760278209356,0.01672599,111600.0,111590.0,0.32752253]
[1760278209563,0.0192076,111620.0,111610.0,0.17919541]
[1760278209766,0.0192076,111620.0,111610.0,0.32640541]
[1760278210167,0.0192076,111630.0,111620.0,0.17917935]
[1760278210367,0.31613117,111640.0,111630.0,0.1791633]
[1760278210574,0.26958486,111640.0,111630.0,0.1791633]
[1760278210814,0.26958486,111640.0,111620.0,0.17917935]
[1760278211125,0.23748387,111640.0,111620.0,0.17917935]
[1760278211329,0.2234329,111640.0,111620.0,0.17917935]
[1760278211533,0.22342714,111640.0,111620.0,0.17932989]
[1760278211743,0.1791633,111630.0,111620.0,0.00015054]
[1760278211875,0.19588151,111630.0,111620.0,0.00015054]
[1760278212689,0.25554046,111630.0,111620.0,0.00015054]
[1760278213146,0.19588151,111630.0,111620.0,0.00015054]
[1760278213550,0.19688151,111630.0,111620.0,0.00015054]
[1760278213930,0.01771821,111630.0,111620.0,0.17932989]
[1760278214135,0.1801633,111630.0,111620.0,0.17932989]
[1760278214336,0.1801633,111630.0,111620.0,0.22574989]
[1760278214911,0.1791633,111630.0,111620.0,0.17932989]
[1760278215375,0.18033087,111630.0,111620.0,0.17932989]
[1760278222330,0.18033087,111630.0,111620.0,0.00015054]
[1760278224324,0.1801633,111630.0,111620.0,0.00015054]
[1760278227696,0.1801633,111630.0,111620.0,0.17932989]
[1760278227920,0.1801633,111630.0,111620.0,0.00015054]
[1760278228936,0.5368478,111630.0,111620.0,0.00015054]
[1760278229163,0.5560554,111630.0,111620.0,0.00015054]
[1760278229492,0.0358921,111630.0,111620.0,0.00015054]
[1760278229701,0.1958478,111630.0,111620.0,0.00015054]
[1760278230122,0.1791633,111630.0,111620.0,0.00015054]
[1760278231050,0.17915099,111640.0,111620.0,0.17930178]
[1760278231314,0.1791633,111630.0,111620.0,0.17932989]
[1760278231579,0.1791633,111630.0,111620.0,0.13532989]
[1760278233564,0.1791633,111630.0,111620.0,0.17917935]
[1760278233908,0.1791633,111630.0,111610.0,0.18815429]
[1760278234538,0.1791633,111630.0,111620.0,0.18014015]
[1760278236070,0.5191633,111630.0,111620.0,0.18014015]
[1760278236256,0.34,111630.0,111620.0,0.18014015]
[1760278236461,0.5191633,111630.0,111620.0,0.18014015]
[1760278237409,0.53841762,111630.0,111620.0,0.18014015]
[1760278238777,0.53841762,111630.0,111620.0,0.13614015]
[1760278241874,0.53841762,111630.0,111610.0,0.22095429]
[1760278242074,0.53841762,111630.0,111610.0,0.26696429]
[1760278243068,0.53841762,111630.0,111610.0,0.18815429]
[1760278243278,0.17917935,111620.0,111610.0,0.18815429]
[1760278243783,0.46415736,111630.0,111590.0,0.04308]
[1760278243993,0.17921146,111600.0,111590.0,0.22230752]
[1760278245199,0.17920987,111610.0,111590.0,0.30125752]
[1760278245420,0.17919779,111610.0,111600.0,0.17921146]
[1760278245626,0.17919779,111610.0,111600.0,0.22358146]
[1760278246073,0.17919779,111610.0,111600.0,0.17921146]
[1760278247868,0.17919779,111610.0,111590.0,0.22230752]
[1760278248513,0.17919779,111610.0,111590.0,0.26667752]
[1760278250700,0.17919779,111610.0,111600.0,0.17921146]
[1760278251208,0.17919779,111610.0,111600.0,0.18037932]
[1760278253326,0.20218999,111620.0,111600.0,0.18037932]
[1760278253534,0.17919541,111610.0,111600.0,0.17921146]
[1760278253930,0.17919541,111610.0,111600.0,0.18037932]
[1760278255094,0.17919541,111610.0,111600.0,0.25932932]
[1760278255429,0.17919541,111610.0,111600.0,0.00116786]
[1760278255633,0.17919541,111610.0,111600.0,0.18037932]
[1760278255835,0.17919541,111610.0,111600.0,0.00116786]
[1760278256035,0.17919541,111610.0,111600.0,0.18037932]
[1760278258962,0.17919541,111610.0,111600.0,0.00116786]
[1760278261144,0.17919541,111610.0,111600.0,0.22851932]
[1760278261434,0.17919541,111610.0,111600.0,0.04930786]
[1760278261658,0.17919541,111610.0,111600.0,0.18037932]
[1760278261822,0.17919541,111610.0,111600.0,0.22851932]
[1760278262016,0.17919541,111610.0,111600.0,0.26172932]
[1760278264862,0.17919541,111610.0,111600.0,0.18037932]
[1760278265916,0.17919541,111610.0,111600.0,0.22851932]
[1760278267009,0.20218985,111620.0,111600.0,0.22851932]
[1760278267227,0.17919541,111610.0,111600.0,0.26056146]
[1760278268062,0.20218985,111620.0,111600.0,0.26056146]
[1760278268272,0.17919541,111610.0,111600.0,0.26056146]
[1760278268383,0.17921146,111600.0,111590.0,0.21243752]
[1760278268594,0.17919541,111610.0,111600.0,0.17921146]
[1760278268792,0.17919541,111610.0,111590.0,0.17922752]
[1760278269454,0.17919541,111610.0,111590.0,0.22736752]
[1760278269635,0.17919541,111610.0,111590.0,0.22836752]
[1760278270054,0.20473065,111620.0,111590.0,0.22836752]
[1760278270316,0.19738637,111620.0,111590.0,0.22836752]
[1760278270525,0.17919541,111610.0,111600.0,0.17921146]
[1760278272354,0.17919541,111610.0,111590.0,0.21243752]
[1760278272642,0.17919541,111610.0,111590.0,0.26057752]
[1760278272843,0.17919541,111610.0,111600.0,0.18037932]
[1760278276575,0.17919541,111610.0,111600.0,0.00116786]
[1760278280418,0.18066646,111620.0,111600.0,0.00116786]
[1760278280603,0.17921146,111600.0,111590.0,0.21243752]
[1760278280806,0.17921146,111600.0,111590.0,0.26057752]
[1760278281857,0.17921146,111600.0,111590.0,0.26157752]
[1760278282040,0.17919541,111610.0,111590.0,0.26157752]
[1760278282947,0.17919541,111610.0,111590.0,0.33195752]
[1760278283184,0.17919541,111610.0,111590.0,0.33095752]
[1760278284675,0.17921146,111600.0,111590.0,0.33095752]
[1760278284986,0.17919541,111610.0,111590.0,0.33095752]
[1760278285352,0.17919541,111610.0,111600.0,0.17921146]
[1760278285558,0.17919541,111610.0,111600.0,0.26056146]
[1760278286388,0.17919541,111610.0,111600.0,0.33094146]
[1760278286827,0.17919541,111610.0,111600.0,0.33210932]
[1760278288788,8.975e-05,111620.0,111610.0,0.17919541]
[1760278288989,8.975e-05,111620.0,111610.0,0.33092541]
[1760278290301,8.975e-05,111620.0,111610.0,0.33192541]
[1760278290505,8.975e-05,111620.0,111610.0,0.35887354]
[1760278292305,8.975e-05,111620.0,111610.0,0.33192541]
[1760278294231,8.975e-05,111620.0,111610.0,0.33250929]
[1760278294894,8.975e-05,111620.0,111610.0,0.26212929]
[1760278295118,0.1792691,111620.0,111610.0,0.00158388]
[1760278296024,0.19598227,111620.0,111610.0,0.00158388]
[1760278296224,0.19598227,111620.0,111610.0,0.00058388]
[1760278297240,0.1792691,111620.0,111610.0,0.00058388]
[1760278297442,0.1792691,111620.0,111610.0,0.17977929]
[1760278298177,0.1792691,111620.0,111610.0,0.00058388]
[1760278298321,0.19331993,111620.0,111610.0,0.00058388]
[1760278299186,0.21003363,111620.0,111610.0,0.00058388]
[1760278299391,0.19331993,111620.0,111610.0,0.00058388]
[1760278299737,0.19331993,111620.0,111610.0,0.17977929]
[1760278299936,0.01414058,111620.0,111610.0,0.22344929]
[1760278300126,0.01414058,111620.0,111610.0,0.25871929]
[1760278300127,0.19331993,111620.0,111610.0,0.25871929]
[1760278300976,0.19331993,111620.0,111610.0,0.21504929]
[1760278301517,0.19331993,111620.0,111610.0,0.17977929]
[1760278301743,0.19331993,111620.0,111610.0,0.00058388]
[1760278301954,0.1792691,111620.0,111610.0,0.00058388]
[1760278303363,0.16770554,111630.0,111610.0,0.00058388]
[1760278303568,0.17917935,111620.0,111610.0,0.17977882]
[1760278303777,0.17917935,111620.0,111610.0,0.00058388]
[1760278304600,0.17917935,111620.0,111610.0,0.17977929]
[1760278306621,0.19322996,111620.0,111610.0,0.17977929]
[1760278307777,0.19322996,111620.0,111610.0,0.00058388]
[1760278308886,0.19322996,111620.0,111610.0,0.17977929]
[1760278309118,0.19322996,111620.0,111610.0,0.00058388]
[1760278311701,0.14364135,111630.0,111610.0,0.00058388]
[1760278311903,0.17917935,111620.0,111610.0,0.17977922]
[1760278312647,0.53841762,111630.0,111610.0,0.32422922]
[1760278312850,0.55613228,111630.0,111610.0,0.32422922]
[1760278313048,0.02025432,111630.0,111620.0,0.17917935]
[1760278313207,0.001,111630.0,111620.0,0.22296935]
[1760278313419,0.1791633,111630.0,111620.0,0.22296935]
[1760278313644,0.1791633,111630.0,111610.0,0.21426922]
[1760278313870,0.1791633,111630.0,111610.0,0.17977922]
[1760278315615,0.1791633,111630.0,111610.0,0.22356922]
[1760278315823,0.1791633,111630.0,111610.0,0.17977922]
[1760278316048,0.17917935,111620.0,111610.0,0.17977922]
[1760278316929,0.17917935,111620.0,111610.0,0.00058388]
[1760278317130,0.17917935,111620.0,111610.0,0.17977929]
[1760278318308,0.17917935,111620.0,111610.0,0.18077929]
[1760278318766,0.17917935,111620.0,111610.0,0.00158388]
[1760278319218,0.17917935,111620.0,111610.0,0.18077929]
[1760278325245,0.17917935,111620.0,111610.0,0.22477929]
[1760278325448,0.17917935,111620.0,111610.0,0.32594929]
[1760278325648,0.17917935,111620.0,111610.0,0.25774929]
[1760278326501,0.17917935,111620.0,111610.0,0.32594929]
[1760278326852,0.17917935,111620.0,111610.0,0.25774929]
[1760278327802,0.1791633,111630.0,111610.0,0.25774929]
[1760278328006,0.03072964,111640.0,111620.0,0.10117]
[1760278328211,0.17914725,111640.0,111630.0,0.3243333]
[1760278328436,0.19318151,111650.0,111630.0,0.3243333]